Cogmind - Beta 10.1 @@@ ROGUE MODE // 2020.10.25 @ 00:26:48 Player: The Scout Result: Destroyed by G-47 Trooper with Particle Gun Performance ------------- Evolutions (0) 0 Regions Visited (1) 200 Robots Destroyed (5) 25 Value Destroyed (123) 123 Prototype IDs (0) 0 Alien Tech Used (0) 0 Bonus (0) 0 TOTAL SCORE: 348 Bonus ------- None Cogmind --------- Core Integrity 0/250 Matter 251/300 Energy 100/100 System Corruption 0% Temperature Cool (9) Movement Rolling (80) Location -10/Materials Parts ------- > --- POWER (1) -------- (None) > --- PROPULSION (2) --- Wheel > --- UTILITY (2) ------ Seismic Analyzer > --- WEAPON (2) ------- (None) > --- INVENTORY (4) ---- Aluminum Leg Aluminum Leg Peak State ------------ > --- POWER ------------ Light Ion Engine > --- PROPULSION ------- Wheel Wheel > --- UTILITY ---------- Improved Terrain Scanner Seismic Analyzer > --- WEAPON ----------- Assault Rifle Assault Rifle > --- INVENTORY -------- Aluminum Leg Aluminum Leg [Rating: 8] Favorites ----------- Power Light Ion Engine Engine Light Ion Engine Propulsion Wheel Leg Aluminum Leg Wheel Wheel Utility Seismic Analyzer Device Improved Terrain Scanner Processor Seismic Analyzer Weapon Assault Rifle Energy Gun Small Laser Ballistic Gun Assault Rifle Build | -11 -10 ------- Run | Scr Mat Slots Evolved . | . . Power . | . . Propulsion . | . . Utility . | . . Weapon . | . . Parts Attached 11 | 11 . Power 2 | 2 . Engine 2 | 2 . Core . | . . Reactor . | . . Propulsion 4 | 4 . Treads . | . . Leg 2 | 2 . Wheel 2 | 2 . Hover . | . . Flight . | . . Utility 2 | 2 . Device 1 | 1 . Storage . | . . Processor 1 | 1 . Hackware . | . . Protection . | . . Artifact . | . . Weapon 3 | 3 . Energy Gun 1 | 1 . Energy Cannon . | . . Ballistic Gun 2 | 2 . Ballistic Cannon . | . . Launcher . | . . Special Weapon . | . . Impact Weapon . | . . Slashing Weapon . | . . Piercing Weapon . | . . Special Melee Weapon . | . . Unidentified Prototypes . | . . Parts Lost 5 | . 5 Power 1 | . 1 Propulsion 1 | . 1 Utility 1 | . 1 Weapon 2 | . 2 Highest Loss Streak 5 | . 5 Average Slot Usage (%) 81 | . 81 Engine 9 | . 9 Wheel 22 | . 22 Device 7 | . 7 Processor 14 | . 14 Ballistic Gun 26 | . 26 Naked Turns . | . . Heaviest Build 8 | 8 8 Greatest Support 20 | 20 20 Greatest Overweight (x) . | . . Average Overweight (x) . | . . Largest Inventory Capacity 4 | 4 4 Average Capacity 4 | 4 4 Most Carried 4 | 4 2 Average Carried 2 | 2 2 Final Capacity 4 | 4 4 Final Carried 2 | 2 2 Class Distribution -------------------- 100% | Mutant Dominant Class ---------------- Mutant | -10/Materials Resources | -11 -10 ----------- Run | Scr Mat Matter Collected 352 | 352 . Remotely . | . . Salvage Created 178 | 93 85 Parts 13 | 8 5 Haulers Intercepted . | . . Recyclers Shooed . | . . Parts Field Recycled . | . . Retrieved Matter . | . . Parts Self-Destructed . | . . Prevented . | . . Kills | -11 -10 ------- Run | Scr Mat Combat Hostiles Destroyed 3 | 1 2 Guns 3 | 1 2 Classes Destroyed 3 | 3 . Worker 1 | 1 . Tunneler 1 | 1 . Grunt 3 | 1 2 Best Kill Streak 2 | 1 2 Combat Bots Only 2 | 1 2 Max Kills in Single Turn 1 | 1 1 Gunslinging . | . . Exploded . | . . Melee . | . . Uniques/NPCs Destroyed . | . . Combat | -11 -10 -------- Run | Scr Mat Damage Taken 635 | 75 560 Core 258 | 25 233 Absorbed by Shields . | . . Core Remaining (%) 90 | 90 . Volleys Fired 28 | 14 14 Largest 2 | 2 2 Hottest 60 | 60 40 Shots Fired 44 | 18 26 Gun 44 | 18 26 Cannon . | . . Launcher . | . . Special . | . . Kinetic 40 | 14 26 Thermal 4 | 4 . Explosive . | . . Electromagnetic . | . . Robot Hit Streak 4 | 2 4 Robot Miss Streak 2 | 2 2 Penetration Max . | . . Secondary Targets . | . . Shots Hit Robots 16 | 7 9 Core Hits 10 | 4 6 Critical Hits . | . . Critical Kills . | . . Critical Parts Destroyed . | . . Melee Attacks . | . . Impact . | . . Slashing . | . . Piercing . | . . Sneak Attacks . | . . Combat Hostiles . | . . Follow-up Attacks . | . . Damage Inflicted 246 | 80 166 Guns 223 | 60 163 Cannons . | . . Explosions . | . . Melee . | . . Ramming 23 | 20 3 Kinetic 203 | 40 163 Thermal 20 | 20 . Explosive . | . . Electromagnetic . | . . Impact . | . . Slashing . | . . Piercing . | . . Highest Corruption . | . . Average Corruption . | . . Corruption Purged . | . . Overload Shots . | . . Overflow Damage . | . . Projectiles . | . . Explosions . | . . Melee . | . . Knockbacks . | . . Impact . | . . Kinetic . | . . Secondary . | . . Self-Inflicted Damage 10 | 9 1 Shots . | . . Rammed 4 | 3 1 Targets Rammed 4 | 3 1 Kicked . | . . Crushed . | . . Highest Temperature 37 | 24 37 Average Temperature 14 | 12 15 Received Heat Transfer 363 | 36 327 Siege Activations . | . . Robots Corrupted . | . . Combat Hostiles . | . . Parts Fried . | . . Impact Corruptions . | . . Robots Melted . | . . Combat Hostiles . | . . Parts Melted . | . . Heat Transferred 50 | 50 . Parts Sabotaged . | . . Parts Stolen . | . . Parts Stripped . | . . Power Chain Reactions . | . . Missiles Intercepted . | . . Alert | -11 -10 ------- Run | Scr Mat Peak Influence 50 | 30 50 Initial . | . . Average 2 | 2 14 Maximum Alert Level . | . . Low Security (%) 100 | 100 100 Level 1 . | . . Level 2 . | . . Level 3 . | . . Level 4 . | . . Level 5 . | . . High Security . | . . Max Security . | . . Squads Dispatched 1 | . 1 Investigation . | . . Extermination . | . . Reinforcement 1 | . 1 Assault . | . . Garrison . | . . Intercept . | . . Construction Impeded . | . . Haulers Reinforced . | . . Stealth | -11 -10 --------- Run | Scr Mat Distress Signals . | . . Communications Jammed . | . . Distress Signals . | . . Times Spotted 8 | 1 7 Peak Tracking Total 4 | 1 4 Tactical Retreats . | . . Traps | -11 -10 ------- Run | Scr Mat Traps Triggered . | . . Indirectly . | . . Trap Hack Attempts . | . . Triggered . | . . Disarmed . | . . Reprogrammed . | . . Reused . | . . Traps Extracted . | . . Installed . | . . Triggered . | . . Machines | -11 -10 ---------- Run | Scr Mat Machines Disabled . | . . Max in Single Turn . | . . Machines Sabotaged . | . . Garrisons Compromised . | . . Overloaded Fab Kills . | . . Fab Network Shutdowns . | . . Hacking | -11 -10 --------- Run | Scr Mat Machines Accessed 1 | . 1 Terminals 1 | . 1 Fabricators . | . . Repair Stations . | . . Recycling Units . | . . Scanalyzers . | . . Garrison Access . | . . Total Hacks 2 | . 2 Successful 1 | . 1 Failed 1 | . 1 Catastrophic . | . . Database Lockouts . | . . Manual . | . . Terminals 2 | . 2 Fabricators . | . . Repair Stations . | . . Recycling Units . | . . Scanalyzers . | . . Garrison Access . | . . Terminal Hacks 1 | . 1 Alert Level 1 | . 1 Fabricator Hacks . | . . Repair Station Hacks . | . . Recycling Unit Hacks . | . . Scanalyzer . | . . Garrison Access Hacks . | . . Unauthorized Hacks . | . . Terminals . | . . Fabricators . | . . Repair Stations . | . . Recycling Units . | . . Scanalyzers . | . . Garrison Access . | . . Data Cores Recovered . | . . Used . | . . Hacking Detections 1 | . 1 Full Trace Events . | . . Feedback Events . | . . Feedback Blocked . | . . Robot Schematics Acquired . | . . Robots Built . | . . Matter . | . . Time . | . . Total Robot Build Rating . | . . Part Schematics Acquired . | . . Parts Built . | . . Matter . | . . Time . | . . Total Part Build Rating . | . . Parts Repaired . | . . Time . | . . Parts Recycled . | . . Recycled Matter . | . . Retrieved Matter . | . . Retrieved Components . | . . Parts Scanalyzed . | . . Part Schematics Acquired . | . . Parts Damaged . | . . Bothacking | -11 -10 ------------ Run | Scr Mat Used RIF Installer . | . . Robots Hacked . | . . Non-combat . | . . Combat . | . . Robot Hacks Applied . | . . Relay Couplers Released . | . . Robots Rewired . | . . Allies Hacked . | . . Hacks Repelled . | . . Allies | -11 -10 -------- Run | Scr Mat Total Allies . | . . Largest Group . | . . Highest-Rated Group . | . . Highest-Rated Ally . | . . Total Orders . | . . Ally Attacks . | . . Total Damage . | . . Kills . | . . Allies Corrupted . | . . Allies Melted . | . . Intel | -11 -10 ------- Run | Scr Mat Robot Analysis Total . | . . Derelict Logs Recovered . | . . Drone Launches . | . . Drone Recoveries . | . . Exploration | -11 -10 ------------- Run | Scr Mat Turns Passed 3241 | 3148 93 Spaces Moved 731 | 666 65 Core 54 | 54 . Treads . | . . Legs . | . . Wheels 677 | 612 65 Hover . | . . Flight . | . . Fastest Speed 50 | 50 80 Average Speed 77 | 77 80 Slowest Speed 80 | 80 80 Overloaded Moves . | . . Propulsion Burnouts . | . . Robots Hopped . | . . Cave-ins Triggered . | . . Exploration Rate (%) 28 | 41 15 Regions Visited 1 Branch Regions . Pre-discovered Areas . | . . Known Exits Taken . | . . Unknown Exits Taken 1 | 1 . Scrap Searched . | . . Spaces Dug . | . . Terrain Destroyed . | . . Melee . | . . Projectile . | . . AOE . | . . Terrain Rammed . | . . Walls Destroyed . | . . Machines Disabled . | . . Actions | -11 -10 --------- Run | Scr Mat Total 3361 | 3281 80 Wait 2573 | 2573 . Move 730 | 665 65 Hop . | . . Pick Up 11 | 11 . Fast Attach . | . . Attach 11 | 11 . Detach 2 | 2 . Swap . | . . Drop 2 | 2 . Fire 28 | 14 14 Melee . | . . Ram 4 | 3 1 Kick . | . . Crush . | . . Escape Stasis . | . . Rewire . | . . Trap . | . . Miscellaneous . | . . Route ------- -11/Scrapyard -10/Materials History --------- Turn | Location | Event 2 | -11/Scrapyard | Met Revision 17 111 | -11/Scrapyard | Discovered new exit (range 8) 3149 | -11/Scrapyard | Entered Materials 3150 | -10/Materials | Build established: Mutant 3205 | -10/Materials | Core integrity fell below 50% 3233 | -10/Materials | Core integrity fell below 20% 3242 | -10/Materials | Destroyed by G-47 Trooper with Particle Gun Last Messages --------------- 03160_ Current location identified: Materials >>Alert(Check) Current Alert Level: Low Security 03175_ K-01 Serf collects debris. 03175_ O-16 Technician: "IFF HANDSHAKE FAILED. SECURING TERMINAL." 03178_ K-01 Serf collects debris. 03179_ ALERT: Hostiles spotted, dispatching reinforcements to Terminal M003. [Achievement: Uninvited Guest] 03181_ K-01 Serf collects debris. 03198_ Imp. Terrain Scanner destroyed. 03201_ Wheel destroyed. When the line of fire is red, you are attempting to shoot through an object at another target, which incurs significant penalties. 03214_ Lgt. Ion Engine destroyed. 03217_ G-47 Trooper destroyed. 03222_ G-34 Mercenary destroyed. 03234_ Assault Rifle destroyed. 03242_ Slammed into G-34 Mercenary. [Achievement: First Step to Greatness] Map ----- +----------------------------------------------------+ | ???????????????????????????????????????????????? | | ???????????????????????????????????????????????? | | ???????????????????????????????????????????????? | | ???????????????????????????????????????????????? | | ???????????????????????????????????????????????? | | ???????????????????????????????????????????????? | | ???????????????????????????????????????????????? | | ??????????????????????????? ??? ?? ??????????? | | ??????????????????????#??## #????????????????? | | ???????????????????????#??# #????????????????? | | ????????????????? ?? ?????# #????????????????? | | ???????????#??? ?????????## ##????? ?????????? | | ????????????????????????#?# #??????? ????????? | | ?????????? ??????????????## ##???"?????? ????? | | ??????? ????????????????### #?#??????????????? | | ????????????##?############ #????????????????? | | ???????? ? ????? t ###?????? ???????? | | ???????? ???????? #???"??????#??"??? | | ??????????????????? #????????????????? | | ??? ???????????##????# ###?????? #??????? | | ?????????????????????# ##### #?????"? | | ?????????? ????????#?# || #?????"? | | ???????? ????####### || #? ????? | | ???????# ????# | + | | ???????# #???# ######g### ######?#? | | ????#??# ????# ######@#### "" #???????? | | ???????# #?#?# # ! *=[g=# "Y #???#???? | | ???????# #???# # """[; "" #?????# | | ????? ?# #???# # g"T" # !! #????#? | | ???????# #?#?# # # !* #?#???? | | ?????"?# #???# ################ ###?????? | | ????"??# #####+#####????? ????# #???????? | | ???? ?# # #??#?????T?? +???"???? | | ?????? # # "#??????????? ####? ?????? | | ? ????+ # T#?????#??#?? #??? ??????? | | ???"???# # """ "#??????????##+##??????????? | | ???????# + """ #????????? ?? ? ?????????? | | ???""??# # """ #???##??????? ? ??????????? | | ???"???# # #?????????????????????????? | | ???????# # #??????#??????????????????? | | ???????###############????#????????????????????? | | #??????????????????????????????????????????????? | | ????????????#??????????????????????????????????? | | ???????????#???????#???????????????????????????? | | ???????#??????#???#????#???????????????????????? | | ????#?????#????????????????????????????????????? | | ????????????#??????????????????????????????????? | | ???????????????????#???????????????????????????? | | ?????????????#?????????????????????????????????? | | ???????#?#?????????????????????????????????????? | +----------------------------------------------------+ Best States ------------- Heat Dissipation 25 Energy Generation 10 Energy Capacity 125 Matter Stores 300 Matter Capacity 300 Sight Range 16 Terrain Scan Range 16 Terrain Scan Density 60 Evasion (%) 50 Item Schematics ----------------- None Robot Schematics ------------------ None Fabricated ------------ Nothing Alien Tech Used ----------------- None Achievements -------------- First Step to Greatness Uninvited Guest Challenges ------------ None Game ------ Seed NetworkFlyingMace Manual? 0 Play Time 00:22:05 Cumulative 0.6 hours Start 2020.10.24 @ 20:26:12 End 2020.10.25 @ 00:26:48 Sessions 2 Manual Loads 0 Difficulty Rogue Special Mode None Game No. 1 Rogue 1 Adventurer 0 Explorer 0 Win Type - Total 0 Types 0/0/0/0/0/0/0/0/0 Lore% 0 Gallery% 0 Achievement% 0 Wizard Run 0 Options --------- ASCII 0 Keyboard 0 Movement Numpad Keybinds 0 Fullscreen 2 Font 24/Cog Map View 76x50 Tactical HUD 1 Map Filters NONE Filters NONE Steam 1 RUN: c83ecb83-5572-4380-8942-d6ea650c24fe